fUSD/lending_fUSD_20241110
["ID","MTS","AMOUNT","RATE_DAILY","PERIOD"]
[341796233,1731235746004,-500.0,0.00012882,2]
[341796234,1731235746030,-500.0,0.00012882,2]
[341796235,1731235746050,-500.0,0.00012882,2]
[341796236,1731235746071,-500.0,0.00012882,2]
[341796237,1731235746093,-436.78128791,0.00012882,2]
[341796238,1731235746115,-500.0,0.00012882,2]
[341796239,1731235746137,-500.0,0.00012882,2]
[341796240,1731235746158,-500.0,0.00012882,2]
[341796241,1731235746183,-537.8925546,0.00012882,2]
[341796242,1731235746206,-500.0,0.00012882,2]
[341796243,1731235746229,-500.0,0.00012882,2]
[341796244,1731235746251,-500.0,0.00012882,2]
[341796245,1731235746272,-500.0,0.00012882,2]
[341796246,1731235746295,-500.0,0.00012882,2]
[341796247,1731235746318,-500.0,0.00012882,2]
[341796248,1731235746340,-500.0,0.00012882,2]
[341796249,1731235746362,-500.0,0.00012882,2]
[341796250,1731235746384,-500.0,0.00012882,2]
[341796251,1731235746407,-500.0,0.00012882,2]
[341796252,1731235746431,-87734.08298497,0.00012883,2]
[341796253,1731235746844,-23661.49338,0.00012883,2]
[341796254,1731235746900,-6500.692212,0.00012883,2]
[341796258,1731235754347,-21834.68767064,0.00012882,2]
[341796259,1731235754370,-500.0,0.00012882,2]
[341796260,1731235754395,-500.0,0.00012882,2]
[341796261,1731235754418,-500.0,0.00012882,2]
[341796262,1731235754441,-227.84776778,0.00012882,2]
[341796263,1731235754464,-2882.46566158,0.00012883,2]
[341796264,1731235764118,-40747.3612,0.00012883,2]
[341796265,1731235764572,-103813.93456145,0.00012883,2]
[341796266,1731235764597,-500.0,0.000129,4]
[341796267,1731235764620,-37403.0,0.00012982,2]
[341796268,1731235764642,-185.11,0.00013019,2]
[341796269,1731235764667,-191.18320303,0.00013022,2]
[341796270,1731235764691,-1142.84647455,0.00013023,2]
[341796271,1731235764714,-1142.84647455,0.00013023,2]
[341796272,1731235764736,-4240.0935,0.00013023,2]
[341796273,1731235764757,-2897.5231682,0.00013102,2]
[341796274,1731235764779,-9203.085035,0.00013102,2]
[341796275,1731235764800,-150.0,0.00013111,2]
[341796276,1731235764824,-110222.46598322,0.00013113,2]
[341796277,1731235765275,362.43,0.00012342,2]
[341796278,1731235765384,105.14108296,0.00012349,2]
[341796279,1731235765411,257.28891704,0.00012349,2]
[341796280,1731235765688,362.43,0.00012355,2]
[341796281,1731235766845,362.43,0.00012362,2]
[341796282,1731235766959,362.43,0.00012368,2]
[341796283,1731235767145,-46642.93015729,0.00013113,2]
[341796284,1731235767224,362.43,0.00012375,2]
[341796285,1731235767722,362.43,0.00012381,2]
[341796286,1731235767843,362.43,0.00012388,2]
[341796287,1731235767956,362.43,0.00012394,2]
[341796288,1731235768213,362.43,0.00012401,2]
[341796289,1731235768359,362.43,0.00012407,2]
[341796290,1731235768448,362.43,0.00012414,2]
[341796291,1731235768622,362.43,0.0001242,2]
[341796292,1731235768690,362.43,0.00012427,2]
[341796293,1731235768789,362.43,0.00012433,2]
[341796294,1731235769071,362.43,0.0001244,2]
[341796295,1731235769137,362.43,0.00012446,2]
[341796296,1731235769209,362.43,0.00012453,2]
[341796297,1731235769298,362.43,0.00012459,2]
[341796298,1731235769341,-17656.41706485,0.00013113,2]
[341796299,1731235769521,362.43,0.00012466,2]
[341796300,1731235774120,-400292.8482,0.00013113,2]
[341796302,1731235796478,617.21,0.00012322,2]
[341796303,1731235826532,393.0,0.00012311,2]
[341796349,1731235833154,-158.82650506,0.00013023,2]
[341796350,1731235833164,-217.05276592,0.00013103,2]
[341796351,1731235833174,-185.06041869,0.00013113,2]
[341796352,1731235833184,-64.96699801,0.00013113,2]
[341796353,1731235833193,-149268.18550199,0.00013113,2]
[341796354,1731235833546,-1175674.79965046,0.00013113,2]
[341796355,1731235833591,-787.90309796,0.00013113,2]
[341796356,1731235833619,-807.5,0.00013113,2]
[341796357,1731235837474,155.33,0.00012499,2]
[341796362,1731235837784,-245.70467934,0.00013112,2]
[341796363,1731235837794,-500.0,0.00013112,2]
[341796364,1731235837803,-500.0,0.00013112,2]
[341796365,1731235837812,-500.0,0.00013112,2]
[341796366,1731235837821,-500.0,0.00013112,2]
[341796367,1731235837830,-500.0,0.00013112,2]
[341796368,1731235837839,-437.3085132,0.00013112,2]
[341796369,1731235837848,-500.0,0.00013112,2]
[341796370,1731235837857,-500.0,0.00013112,2]
[341796371,1731235837866,-500.0,0.00013112,2]
[341796372,1731235837875,-305.94750923,0.00013112,2]
[341796373,1731235837884,-107206.19539515,0.00013113,2]
[341796374,1731235837895,-592.07942,0.00013113,2]
[341796375,1731235837906,-1187.35,0.00013113,2]
[341796376,1731235837917,-2381.04,0.00013113,2]
[341796377,1731235837928,-946.8374332,0.00013113,2]
[341796378,1731235838090,-2281.3520606,0.00013113,2]
[341796379,1731235838101,-1197.62365238,0.00013113,2]
[341796380,1731235838112,-3979.53218,0.00013113,2]
[341796381,1731235838123,-3456.40106073,0.00013113,2]
[341796382,1731235838135,-6161.62234431,0.00013113,2]
[341796383,1731235838147,-3994.90374,0.00013113,2]
[341796384,1731235838158,-3656.09114225,0.00013113,2]
[341796385,1731235838169,-985.75280279,0.00013113,2]
[341796386,1731235838180,-3050.56651632,0.00013113,2]
[341796387,1731235838192,-994.20051966,0.00013113,2]
[341796388,1731235838203,-1001.37491274,0.00013113,2]
[341796389,1731235838252,-1254972.47801981,0.00013113,2]
[341796390,1731235838262,-191.18320302,0.00013118,2]
[341796391,1731235838272,-3162949.23158229,0.00013123,2]
[341796418,1731235838584,-923.735429,0.00013123,2]
[341796443,1731235839852,-307.425,0.00013123,2]
[341796462,1731235842863,-1513.18396571,0.00013123,2]
[341796467,1731235843862,-21029.3668,0.00013123,2]
[341796468,1731235843873,-1058.66594576,0.00013123,2]
[341796469,1731235843884,-4153.22537336,0.00013123,2]
[341796470,1731235843895,-5118.25115451,0.00013123,2]
[341796471,1731235843906,-6578.99102642,0.00013123,2]
[341796472,1731235843972,-1676920.85487841,0.00013123,2]
[341796473,1731235843981,-689004.93,0.00013123,2]
[341796474,1731235843990,-2388.609,0.00013123,2]
[341796475,1731235843999,-506.46845643,0.00013173,2]
[341796476,1731235844008,-500.0,0.00013173,2]
[341796477,1731235844018,-500.0,0.00013173,2]
[341796478,1731235844027,-500.92734575,0.00013173,2]
[341796479,1731235844036,-1088.31,0.00013173,2]
[341796480,1731235844045,-500.34965439,0.00013173,2]
[341796481,1731235844055,-500.0,0.00013173,2]
[341796482,1731235844066,-500.0,0.00013173,2]
[341796483,1731235844075,-28460.28,0.000132,2]
[341796484,1731235844084,-362.09,0.000132,2]
[341796485,1731235844093,-432.91,0.000132,2]
[341796486,1731235844104,-150.0,0.000132,2]
[341796487,1731235844113,-724.18,0.000132,2]
[341796488,1731235844122,-300.0,0.000132,2]
[341796489,1731235844132,-762.58,0.000132,2]
[341796490,1731235844141,-150.0,0.000132,2]
[341796491,1731235844152,-150.0,0.000132,2]
[341796492,1731235844161,-150.0,0.000132,2]
[341796493,1731235844170,-150.0,0.000132,2]
[341796494,1731235844180,-362.16,0.000132,2]
[341796495,1731235844189,-432.99,0.000132,2]
[341796496,1731235844199,-150.0,0.000132,2]
[341796497,1731235844208,-150.0,0.000132,2]
[341796498,1731235844218,-150.0,0.000132,2]
[341796499,1731235844227,-362.16,0.000132,2]
[341796500,1731235844237,-150.0,0.000132,2]
[341796501,1731235844246,-150.0,0.000132,2]
[341796502,1731235844255,-762.58,0.000132,2]
[341796503,1731235844265,-432.99,0.000132,2]
[341796504,1731235844274,-432.75,0.000132,2]
[341796505,1731235844283,-150.0,0.000132,2]
[341796506,1731235844293,-150.0,0.000132,2]
[341796507,1731235844302,-150.0,0.000132,2]
[341796508,1731235844311,-362.16,0.000132,2]
[341796509,1731235844320,-762.58,0.000132,2]
[341796510,1731235844329,-150.0,0.000132,2]
[341796511,1731235844339,-380.15921727,0.00013203,2]
[341796512,1731235844348,-191.18320302,0.00013214,2]
[341796513,1731235844357,-362.16,0.000133,2]
[341796514,1731235844367,-432.99,0.000133,2]
[341796515,1731235844376,-304.97,0.000133,2]
[341796516,1731235844385,-464.29,0.000133,2]
[341796517,1731235844395,-1522.87,0.000133,2]
[341796518,1731235844404,-150.0,0.000133,2]
[341796519,1731235844413,-150.0,0.000133,2]
[341796520,1731235844424,-191.18320302,0.0001331,2]
[341796521,1731235844433,-152.73,0.0001337,2]
[341796522,1731235844444,-724.25,0.0001337,2]
[341796523,1731235844453,-432.99,0.000134,2]
[341796524,1731235844464,-150.0,0.000134,2]
[341796525,1731235844473,-432.99,0.000134,2]
[341796526,1731235844482,-432.99,0.000134,2]
[341796527,1731235844491,-150.0,0.000134,2]
[341796528,1731235844500,-432.32,0.000134,2]
[341796529,1731235844509,-156.44,0.000134,2]
[341796530,1731235844519,-150.0,0.000134,2]
[341796531,1731235844529,-432.99,0.000134,2]
[341796532,1731235844539,-150.0,0.000134,2]
[341796533,1731235844549,-864.79,0.000134,2]
[341796534,1731235844559,-300.0,0.000134,2]
[341796535,1731235844569,-150.0,0.000134,2]
[341796536,1731235844579,-762.58,0.000134,2]
[341796537,1731235844588,-207.66,0.000134,2]
[341796538,1731235844598,-150.0,0.000134,2]
[341796539,1731235844607,-150.0,0.000134,2]
[341796540,1731235844616,-151.01,0.000134,2]
[341796541,1731235844625,-150.0,0.000134,2]
[341796542,1731235844634,-150.0,0.000134,2]
[341796543,1731235844650,-150.0,0.000134,2]
[341796544,1731235844663,-762.58,0.000134,2]
[341796545,1731235844673,-150.0,0.000134,2]
[341796546,1731235844683,-362.16,0.000134,2]
[341796547,1731235844693,-150.0,0.000134,2]
[341796548,1731235844703,-150.0,0.000134,2]
[341796549,1731235844715,-191.18320302,0.00013406,2]
[341796550,1731235844725,-500.0,0.00013494,2]
[341796551,1731235844738,-476.61,0.00013497,2]
[341796552,1731235844750,-432.99,0.000135,2]
[341796553,1731235844763,-362.16,0.000135,2]
[341796554,1731235844774,-154.48,0.000135,2]
[341796555,1731235844784,-150.0,0.000135,2]
[341796556,1731235844793,-191.18320302,0.00013502,2]
[341796557,1731235844803,-500.0,0.00013503,2]
[341796558,1731235844812,-288.53,0.0001351,2]
[341796559,1731235844822,-500.0,0.00013512,2]
[341796560,1731235844832,-500.0,0.00013521,2]
[341796561,1731235844841,-500.0,0.0001353,2]
[341796562,1731235844851,-500.0,0.00013538,2]
[341796563,1731235844860,-500.0,0.00013547,2]
[341796564,1731235844869,-500.0,0.00013556,2]
[341796565,1731235844878,-500.0,0.00013565,2]
[341796566,1731235844887,-500.0,0.00013574,2]
[341796567,1731235844897,-500.0,0.00013582,2]
[341796568,1731235844906,-500.0,0.00013591,2]
[341796569,1731235844915,-166.67419174,0.00013598,2]
[341796570,1731235844925,-191.18320302,0.00013598,2]
[341796571,1731235844935,-4926.27237599,0.000136,2]
[341796572,1731235844947,-500.0,0.000136,2]
[341796573,1731235844956,-362.16,0.000136,2]
[341796574,1731235844968,-362.16,0.000136,2]
[341796575,1731235844977,-303.79,0.000136,2]
[341796576,1731235844987,-150.0,0.000136,2]
[341796577,1731235844997,-362.16,0.000136,2]
[341796578,1731235845007,-5800.0,0.000136,2]
[341796579,1731235845016,-500.0,0.000136,2]
[341796580,1731235845025,-231362.69231348,0.00013697,2]
[341796581,1731235845034,-100499.17,0.00013697,2]
[341796582,1731235845044,-418.699946,0.00013698,2]
[341796583,1731235845055,-418.699946,0.00013698,2]
[341796584,1731235845065,-418.699946,0.00013698,2]
[341796585,1731235845073,-418.699946,0.00013698,2]
[341796586,1731235845083,-418.699946,0.00013698,2]
[341796587,1731235845092,-418.699946,0.00013698,2]
[341796588,1731235845102,-418.699946,0.00013698,2]
[341796589,1731235845111,-418.699946,0.00013698,2]
[341796590,1731235845120,-418.699946,0.00013698,2]
[341796591,1731235845130,-418.699946,0.00013698,2]
[341796592,1731235845140,-418.699946,0.00013698,2]
[341796593,1731235845149,-418.699946,0.00013698,2]
[341796594,1731235845158,-418.699946,0.00013698,2]
[341796595,1731235845168,-418.699946,0.00013698,2]
[341796596,1731235845177,-418.699946,0.00013698,2]
[341796597,1731235845186,-418.699946,0.00013698,2]
[341796598,1731235845195,-418.699946,0.00013698,2]
[341796599,1731235845204,-418.699946,0.00013698,2]
[341796600,1731235845215,-418.699946,0.00013698,2]
[341796601,1731235845224,-418.699946,0.00013698,2]
[341796602,1731235845234,-418.699946,0.00013698,2]
[341796603,1731235845243,-418.699946,0.00013698,2]
[341796604,1731235845253,-418.699946,0.00013698,2]
[341796605,1731235845262,-418.699946,0.00013698,2]
[341796606,1731235845272,-154.996608,0.00013698,2]
[341796607,1731235845281,-154.996608,0.00013698,2]
[341796608,1731235845291,-154.996608,0.00013698,2]
[341796609,1731235845301,-154.996608,0.00013698,2]
[341796610,1731235845311,-473.632597,0.00013698,2]
[341796611,1731235845320,-153.24296,0.00013698,2]
[341796612,1731235845331,-473.632597,0.00013698,2]
[341796613,1731235845341,-153.24296,0.00013698,2]
[341796614,1731235845350,-153.24296,0.00013698,2]
[341796615,1731235845360,-153.24296,0.00013698,2]
[341796616,1731235845369,-153.24296,0.00013698,2]
[341796617,1731235845381,-154.996608,0.00013698,2]
[341796618,1731235845390,-473.632597,0.00013698,2]
[341796619,1731235845398,-153.24296,0.00013698,2]
[341796620,1731235845408,-473.632597,0.00013698,2]
[341796621,1731235845417,-473.632597,0.00013698,2]
[341796622,1731235845428,-154.996608,0.00013698,2]
[341796623,1731235845437,-153.24296,0.00013698,2]
[341796624,1731235845447,-154.996608,0.00013698,2]
[341796625,1731235845456,-473.632597,0.00013698,2]
[341796626,1731235845467,-153.24296,0.00013698,2]
[341796627,1731235845477,-154.996608,0.00013698,2]
[341796632,1731235845905,-473.632597,0.00013698,2]
[341796633,1731235845916,-153.24296,0.00013698,2]
[341796634,1731235845927,-473.632597,0.00013698,2]
[341796635,1731235845937,-153.24296,0.00013698,2]
[341796636,1731235845948,-473.632597,0.00013698,2]
[341796637,1731235845958,-153.24296,0.00013698,2]
[341796638,1731235845969,-473.632597,0.00013698,2]
[341796639,1731235845979,-153.24296,0.00013698,2]
[341796640,1731235845989,-153.24296,0.00013698,2]
[341796641,1731235845999,-473.632597,0.00013698,2]
[341796642,1731235846009,-153.24296,0.00013698,2]
[341796643,1731235846018,-473.632597,0.00013698,2]
[341796644,1731235846028,-473.632597,0.00013698,2]
[341796645,1731235846042,-153.24296,0.00013698,2]
[341796646,1731235846052,-473.632597,0.00013698,2]
[341796647,1731235846067,-153.24296,0.00013698,2]
[341796648,1731235846077,-473.632597,0.00013698,2]
[341796649,1731235846088,-153.24296,0.00013698,2]
[341796650,1731235846099,-473.632597,0.00013698,2]
[341796651,1731235846109,-473.632597,0.00013698,2]
[341796652,1731235846119,-473.632597,0.00013698,2]
[341796653,1731235846129,-473.632597,0.00013698,2]
[341796654,1731235846141,-473.632597,0.00013698,2]
[341796656,1731235846151,-473.632597,0.00013698,2]
[341796658,1731235846161,-473.632597,0.00013698,2]
[341796660,1731235846172,-473.632597,0.00013698,2]
[341796661,1731235846182,-473.632597,0.00013698,2]
[341796662,1731235846192,-151.0,0.00013698,2]
[341796664,1731235846202,-151.0,0.00013698,2]
[341796666,1731235846213,-151.0,0.00013698,2]
[341796667,1731235846224,-151.0,0.00013698,2]
[341796669,1731235846235,-151.0,0.00013698,2]
[341796670,1731235846246,-151.0,0.00013698,2]
[341796672,1731235846257,-151.0,0.00013698,2]
[341796673,1731235846267,-151.0,0.00013698,2]
[341796674,1731235846277,-151.0,0.00013698,2]
[341796675,1731235846292,-151.0,0.00013698,2]
[341796676,1731235846303,-151.0,0.00013698,2]
[341796677,1731235846314,-151.0,0.00013698,2]
[341796678,1731235846327,-151.0,0.00013698,2]
[341796679,1731235846337,-151.0,0.00013698,2]
[341796680,1731235846348,-177.300866,0.00013698,2]
[341796681,1731235846359,-248.886538,0.00013698,2]
[341796682,1731235846370,-248.886538,0.00013698,2]
[341796683,1731235846380,-279.078722,0.00013698,2]
[341796684,1731235846391,-279.078722,0.00013698,2]
[341796685,1731235846401,-279.078722,0.00013698,2]
[341796686,1731235846412,-279.078722,0.00013698,2]
[341796687,1731235846422,-279.078722,0.00013698,2]
[341796688,1731235846432,-279.078722,0.00013698,2]
[341796689,1731235846443,-279.078722,0.00013698,2]
[341796690,1731235846453,-279.078722,0.00013698,2]
[341796691,1731235846463,-279.078722,0.00013698,2]
[341796692,1731235846476,-279.078722,0.00013698,2]
[341796693,1731235846486,-279.078722,0.00013698,2]
[341796694,1731235846495,-279.078722,0.00013698,2]
[341796695,1731235846506,-279.078722,0.00013698,2]
[341796696,1731235846516,-279.078722,0.00013698,2]
[341796697,1731235846526,-151.0,0.00013698,2]
[341796698,1731235846537,-151.0,0.00013698,2]
[341796699,1731235846547,-151.0,0.00013698,2]
[341796700,1731235846558,-151.0,0.00013698,2]
[341796701,1731235846568,-151.0,0.00013698,2]
[341796702,1731235846579,-159.919907,0.00013698,2]
[341796703,1731235846589,-220.591367,0.00013698,2]
[341796704,1731235846600,-220.591367,0.00013698,2]
[341796705,1731235846611,-220.591367,0.00013698,2]
[341796706,1731235846620,-220.591367,0.00013698,2]
[341796707,1731235846630,-220.591367,0.00013698,2]
[341796708,1731235846640,-220.591367,0.00013698,2]
[341796709,1731235846650,-220.591367,0.00013698,2]
[341796710,1731235846660,-220.591367,0.00013698,2]
[341796711,1731235846670,-220.591367,0.00013698,2]
[341796712,1731235846680,-220.591367,0.00013698,2]
[341796713,1731235846690,-220.591367,0.00013698,2]
[341796714,1731235846699,-220.591367,0.00013698,2]
[341796715,1731235846709,-220.591367,0.00013698,2]
[341796716,1731235846720,-220.591367,0.00013698,2]
[341796717,1731235846731,-220.591367,0.00013698,2]
[341796718,1731235846741,-220.591367,0.00013698,2]
[341796719,1731235846750,-220.591367,0.00013698,2]
[341796720,1731235846761,-220.591367,0.00013698,2]
[341796721,1731235846771,-220.591367,0.00013698,2]
[341796722,1731235846781,-220.591365,0.00013698,2]
[341796723,1731235846792,-438.895365,0.00013698,2]
[341796724,1731235846802,-438.895365,0.00013698,2]
[341796725,1731235846812,-438.895365,0.00013698,2]
[341796726,1731235846822,-438.895365,0.00013698,2]
[341796727,1731235846832,-438.895365,0.00013698,2]
[341796728,1731235846843,-438.895365,0.00013698,2]
[341796729,1731235846853,-438.895365,0.00013698,2]
[341796730,1731235846863,-151.0,0.00013698,2]
[341796731,1731235846873,-151.0,0.00013698,2]
[341796732,1731235846883,-151.0,0.00013698,2]
[341796733,1731235846894,-151.0,0.00013698,2]
[341796734,1731235846905,-438.895365,0.00013698,2]
[341796735,1731235846915,-151.0,0.00013698,2]
[341796736,1731235846925,-438.895365,0.00013698,2]
[341796737,1731235846936,-151.0,0.00013698,2]
[341796738,1731235846946,-438.895365,0.00013698,2]
[341796739,1731235846956,-151.0,0.00013698,2]
[341796740,1731235846966,-438.895365,0.00013698,2]
[341796741,1731235846976,-438.895365,0.00013698,2]
[341796742,1731235846986,-438.895365,0.00013698,2]
[341796743,1731235846997,-438.895365,0.00013698,2]
[341796744,1731235847007,-167.25593,0.00013698,2]
[341796745,1731235847017,-151.0,0.00013698,2]
[341796746,1731235847027,-151.0,0.00013698,2]
[341796747,1731235847037,-151.0,0.00013698,2]
[341796748,1731235847050,-151.0,0.00013698,2]
[341796749,1731235847060,-151.0,0.00013698,2]
[341796750,1731235847070,-151.0,0.00013698,2]
[341796751,1731235847079,-151.0,0.00013698,2]
[341796752,1731235847090,-151.0,0.00013698,2]
[341796753,1731235847099,-151.0,0.00013698,2]
[341796754,1731235847110,-151.0,0.00013698,2]
[341796755,1731235847119,-165.369745,0.00013698,2]
[341796756,1731235847130,-152.376244,0.00013698,2]
[341796757,1731235847140,-165.369745,0.00013698,2]
[341796758,1731235847150,-165.369745,0.00013698,2]
[341796759,1731235847159,-165.369745,0.00013698,2]
[341796760,1731235847169,-165.369745,0.00013698,2]
[341796761,1731235847178,-165.369745,0.00013698,2]
[341796762,1731235847188,-165.369745,0.00013698,2]
[341796763,1731235847197,-165.369745,0.00013698,2]
[341796764,1731235847207,-165.369745,0.00013698,2]
[341796765,1731235847217,-165.369745,0.00013698,2]
[341796766,1731235847227,-165.369745,0.00013698,2]
[341796767,1731235847236,-165.369745,0.00013698,2]
[341796768,1731235847246,-165.369745,0.00013698,2]
[341796769,1731235847255,-165.369745,0.00013698,2]
[341796770,1731235847265,-165.369745,0.00013698,2]
[341796771,1731235847274,-165.369745,0.00013698,2]
[341796772,1731235847283,-165.369745,0.00013698,2]
[341796773,1731235847293,-165.369745,0.00013698,2]
[341796774,1731235847302,-165.369745,0.00013698,2]
[341796776,1731235847311,-165.369739,0.00013698,2]
[341796777,1731235847321,-226.298672,0.00013698,2]
[341796779,1731235847330,-226.298672,0.00013698,2]
[341796781,1731235847339,-226.298672,0.00013698,2]
[341796782,1731235847348,-226.298672,0.00013698,2]
[341796784,1731235847358,-226.298672,0.00013698,2]
[341796785,1731235847367,-226.298672,0.00013698,2]
[341796787,1731235847377,-226.298672,0.00013698,2]
[341796789,1731235847386,-226.298672,0.00013698,2]
[341796790,1731235847395,-226.298672,0.00013698,2]
[341796792,1731235847405,-226.298672,0.00013698,2]
[341796794,1731235847414,-226.298672,0.00013698,2]
[341796795,1731235847423,-226.298672,0.00013698,2]
[341796797,1731235847432,-226.298672,0.00013698,2]
[341796799,1731235847441,-226.298672,0.00013698,2]
[341796800,1731235847451,-226.298672,0.00013698,2]
[341796802,1731235847460,-226.298672,0.00013698,2]
[341796804,1731235847471,-226.298672,0.00013698,2]
[341796805,1731235847481,-226.298672,0.00013698,2]
[341796807,1731235847491,-226.298672,0.00013698,2]
[341796809,1731235847500,-226.298672,0.00013698,2]
[341796810,1731235847510,-500.0,0.00013698,2]
[341796812,1731235847519,-500.0,0.00013698,2]
[341796814,1731235847528,-500.0,0.00013698,2]
[341796815,1731235847538,-500.0,0.00013698,2]
[341796817,1731235847548,-500.0,0.00013698,2]
[341796819,1731235847558,-500.0,0.00013698,2]
[341796821,1731235847571,-500.0,0.00013698,2]
[341796822,1731235847581,-500.0,0.00013698,2]
[341796824,1731235847591,-500.0,0.00013698,2]
[341796825,1731235847600,-500.0,0.00013698,2]
[341796827,1731235847610,-500.0,0.00013698,2]
[341796829,1731235847620,-500.0,0.00013698,2]
[341796830,1731235847630,-500.0,0.00013698,2]
[341796831,1731235847639,-500.0,0.00013698,2]
[341796832,1731235847649,-500.0,0.00013698,2]
[341796833,1731235847659,-500.0,0.00013698,2]
[341796834,1731235847669,-499.9998091,0.00013698,2]
[341796835,1731235847678,-500.0,0.00013698,2]
[341796836,1731235847687,-500.0,0.00013698,2]
[341796837,1731235847697,-500.0,0.00013698,2]
[341796838,1731235847707,-500.0,0.00013698,2]
[341796839,1731235847718,-500.0,0.00013698,2]
[341796840,1731235847727,-500.0,0.00013698,2]
[341796841,1731235847737,-500.0,0.00013698,2]
[341796842,1731235847746,-249.975758,0.00013698,2]
[341796843,1731235847756,-249.975758,0.00013698,2]
[341796844,1731235847765,-151.0,0.00013698,2]
[341796845,1731235847774,-151.0,0.00013698,2]
[341796846,1731235847783,-151.0,0.00013698,2]
[341796847,1731235847793,-500.0,0.00013698,2]
[341796848,1731235847803,-249.975758,0.00013698,2]
[341796849,1731235847812,-151.0,0.00013698,2]
[341796850,1731235847823,-500.0,0.00013698,2]
[341796851,1731235847833,-500.0,0.00013698,2]
[341796852,1731235847843,-151.0,0.00013698,2]
[341796853,1731235847854,-249.975758,0.00013698,2]
[341796854,1731235847865,-500.0,0.00013698,2]
[341796855,1731235847876,-500.0,0.00013698,2]
[341796856,1731235847885,-249.975758,0.00013698,2]
[341796857,1731235847895,-162.258435,0.00013698,2]
[341796858,1731235847904,-500.0,0.00013698,2]
[341796859,1731235847914,-500.0,0.00013698,2]
[341796860,1731235847924,-162.258435,0.00013698,2]
[341796861,1731235847936,-249.975758,0.00013698,2]
[341796862,1731235847945,-500.0,0.00013698,2]
[341796863,1731235847955,-162.258435,0.00013698,2]
[341796864,1731235847965,-500.0,0.00013698,2]
[341796865,1731235847976,-249.975758,0.00013698,2]
[341796866,1731235847985,-162.258435,0.00013698,2]
[341796867,1731235847995,-597.20126018,0.00013698,2]
[341796868,1731235848005,-249.975758,0.00013698,2]
[341796869,1731235848015,-249.975758,0.00013698,2]
[341796870,1731235848025,-249.975758,0.00013698,2]
[341796871,1731235848035,-249.975758,0.00013698,2]
[341796872,1731235848045,-500.0,0.00013698,2]
[341796873,1731235848055,-249.975758,0.00013698,2]
[341796874,1731235848068,-500.0,0.00013698,2]
[341796875,1731235848077,-500.0,0.00013698,2]
[341796876,1731235848087,-249.975758,0.00013698,2]
[341796877,1731235848097,-151.45006053,0.00013698,2]
[341796878,1731235848106,-249.975758,0.00013698,2]
[341796879,1731235848116,-249.975758,0.00013698,2]
[341796880,1731235848127,-249.975758,0.00013698,2]
[341796881,1731235848137,-500.0,0.00013698,2]
[341796882,1731235848147,-500.0,0.00013698,2]
[341796883,1731235848157,-500.0,0.00013698,2]
[341796884,1731235848167,-249.975758,0.00013698,2]
[341796885,1731235848177,-500.0,0.00013698,2]
[341796886,1731235848187,-249.975758,0.00013698,2]
[341796887,1731235848197,-500.0,0.00013698,2]
[341796888,1731235848206,-500.0,0.00013698,2]
[341796889,1731235848217,-249.975758,0.00013698,2]
[341796890,1731235848227,-249.975758,0.00013698,2]